fUSD/lending_fUSD_20240409
["ID","MTS","AMOUNT","RATE_DAILY","PERIOD"]
[321932729,1712641843534,-500.0,0.00020821,2]
[321932730,1712641843545,-597.64690051,0.00020821,2]
[321932731,1712641843557,-500.0,0.00020821,2]
[321932732,1712641843567,-500.0,0.00020821,2]
[321932733,1712641843578,-1500.79,0.00020821,2]
[321932734,1712641843588,-608.58,0.00020821,2]
[321932735,1712641843598,-602.13,0.00020821,2]
[321932736,1712641843608,-500.0,0.00020821,2]
[321932737,1712641843619,-965.99,0.00020821,2]
[321932738,1712641843629,-500.0,0.00020821,2]
[321932739,1712641843641,-500.0,0.00020821,2]
[321932740,1712641843650,-500.0,0.00020821,2]
[321932741,1712641843660,-513.50350654,0.00020821,2]
[321932742,1712641843671,-500.0,0.00020821,2]
[321932743,1712641843680,-500.0,0.00020821,2]
[321932744,1712641843690,-580.55625822,0.00020821,2]
[321932745,1712641843699,-500.0,0.00020821,2]
[321932746,1712641843708,-607.03,0.00020821,2]
[321932747,1712641843718,-500.0,0.00020821,2]
[321932748,1712641843728,-799.64,0.00020821,2]
[321932749,1712641843738,-1144.11,0.00020821,2]
[321932750,1712641843747,-500.0,0.00020821,2]
[321932751,1712641843757,-500.0,0.00020821,2]
[321932752,1712641843767,-599.10512209,0.00020821,2]
[321932753,1712641843776,-777.49,0.00020821,2]
[321932754,1712641843786,-500.0,0.00020821,2]
[321932755,1712641843795,-500.0,0.00020821,2]
[321932756,1712641843805,-556.78,0.00020821,2]
[321932757,1712641843814,-500.0,0.00020821,2]
[321932758,1712641843824,-585.54,0.00020821,2]
[321932759,1712641843833,-500.0,0.00020821,2]
[321932760,1712641843843,-500.0,0.00020821,2]
[321932761,1712641843852,-625.41,0.00020821,2]
[321932762,1712641843862,-1942.73,0.00020821,2]
[321932763,1712641843871,-500.0,0.00020821,2]
[321932764,1712641843880,-579.49,0.00020821,2]
[321932765,1712641843889,-500.0,0.00020821,2]
[321932766,1712641843898,-534.90736733,0.00020821,2]
[321932767,1712641843908,-1750.23,0.00020821,2]
[321932768,1712641843917,-500.0,0.00020821,2]
[321932769,1712641843926,-500.0,0.00020821,2]
[321932770,1712641843936,-522.09349027,0.00020821,2]
[321932771,1712641843945,-500.0,0.00020821,2]
[321932772,1712641843955,-500.0,0.00020821,2]
[321932773,1712641843964,-522.41,0.00020821,2]
[321932774,1712641843973,-500.0,0.00020821,2]
[321932775,1712641843982,-500.0,0.00020821,2]
[321932776,1712641843992,-1571.96,0.00020821,2]
[321932777,1712641844001,-500.0,0.00020821,2]
[321932778,1712641844011,-1507.74,0.00020821,2]
[321932779,1712641844020,-692.95,0.00020821,2]
[321932780,1712641844030,-500.0,0.00020821,2]
[321932781,1712641844039,-510.99,0.00020821,2]
[321932782,1712641844048,-500.0,0.00020821,2]
[321932783,1712641844058,-500.0,0.00020821,2]
[321932784,1712641844067,-500.0,0.00020821,2]
[321932785,1712641844077,-1593.09,0.00020821,2]
[321932786,1712641844086,-500.0,0.00020821,2]
[321932788,1712641844096,-500.0,0.00020821,2]
[321932805,1712641844347,-1477.53,0.00020821,2]
[321932807,1712641844358,-500.0,0.00020821,2]
[321932808,1712641844367,-589.39,0.00020821,2]
[321932810,1712641844377,-500.0,0.00020821,2]
[321932812,1712641844386,-1505.38,0.00020821,2]
[321932813,1712641844395,-4513.14,0.00020821,2]
[321932815,1712641844404,-500.0,0.00020821,2]
[321932817,1712641844413,-500.0,0.00020821,2]
[321932818,1712641844423,-500.0,0.00020821,2]
[321932820,1712641844432,-2666.97,0.00020821,2]
[321932822,1712641844441,-600.0,0.00020821,2]
[321932823,1712641844451,-1399.47,0.00020821,2]
[321932825,1712641844461,-500.0,0.00020821,2]
[321932827,1712641844471,-1655.11,0.00020821,2]
[321932828,1712641844482,-500.0,0.00020821,2]
[321932830,1712641844493,-500.0,0.00020821,2]
[321932832,1712641844502,-1323.72,0.00020821,2]
[321932834,1712641844511,-500.0,0.00020821,2]
[321932835,1712641844522,-2482.56,0.00020821,2]
[321932837,1712641844531,-500.0,0.00020821,2]
[321932839,1712641844541,-749.14,0.00020821,2]
[321932840,1712641844550,-546.27,0.00020821,2]
[321932841,1712641844561,-1181.96,0.00020821,2]
[321932842,1712641844570,-500.0,0.00020821,2]
[321932843,1712641844580,-500.0,0.00020821,2]
[321932844,1712641844589,-500.0,0.00020821,2]
[321932845,1712641844599,-1344.74,0.00020821,2]
[321932846,1712641844608,-500.0,0.00020821,2]
[321932847,1712641844618,-1222.46,0.00020821,2]
[321932848,1712641844628,-500.0,0.00020821,2]
[321932849,1712641844638,-500.0,0.00020821,2]
[321932850,1712641844649,-797.53,0.00020821,2]
[321932851,1712641844659,-644.52,0.00020821,2]
[321932852,1712641844668,-624.11,0.00020821,2]
[321932853,1712641844679,-934.33,0.00020821,2]
[321932854,1712641844688,-1319.56,0.00020821,2]
[321932855,1712641844698,-717.67,0.00020821,2]
[321932856,1712641844708,-1551.11,0.00020821,2]
[321932857,1712641844717,-500.0,0.00020821,2]
[321932858,1712641844727,-500.0,0.00020821,2]
[321932859,1712641844736,-500.0,0.00020821,2]
[321932860,1712641844746,-500.0,0.00020821,2]
[321932861,1712641844757,-2887.64,0.00020821,2]
[321932862,1712641844767,-704.32,0.00020821,2]
[321932863,1712641844778,-1907.75,0.00020821,2]
[321932864,1712641844787,-886.47,0.00020821,2]
[321932865,1712641844797,-2219.14,0.00020821,2]
[321932866,1712641844806,-1029.36,0.00020821,2]
[321932867,1712641844816,-500.0,0.00020821,2]
[321932868,1712641844826,-500.0,0.00020821,2]
[321932869,1712641844835,-500.0,0.00020821,2]
[321932870,1712641844845,-500.0,0.00020821,2]
[321932871,1712641844854,-1197.59,0.00020821,2]
[321932872,1712641844864,-1224.62,0.00020821,2]
[321932873,1712641844873,-509.47,0.00020821,2]
[321932874,1712641844884,-500.0,0.00020821,2]
[321932875,1712641844893,-500.0,0.00020821,2]
[321932876,1712641844903,-500.0,0.00020821,2]
[321932877,1712641844913,-500.0,0.00020821,2]
[321932878,1712641844922,-1472.07,0.00020821,2]
[321932879,1712641844932,-500.0,0.00020821,2]
[321932880,1712641844941,-500.0,0.00020821,2]
[321932881,1712641844950,-500.0,0.00020821,2]
[321932882,1712641844960,-662.11,0.00020821,2]
[321932883,1712641844969,-500.0,0.00020821,2]
[321932884,1712641844979,-653.97,0.00020821,2]
[321932885,1712641844988,-500.0,0.00020821,2]
[321932886,1712641844998,-500.0,0.00020821,2]
[321932887,1712641845008,-500.0,0.00020821,2]
[321932888,1712641845017,-500.0,0.00020821,2]
[321932889,1712641845028,-500.0,0.00020821,2]
[321932890,1712641845037,-500.0,0.00020821,2]
[321932891,1712641845046,-500.0,0.00020821,2]
[321932892,1712641845056,-779.01,0.00020821,2]
[321932893,1712641845066,-1551.58,0.00020821,2]
[321932894,1712641845076,-500.0,0.00020821,2]
[321932895,1712641845085,-630.37,0.00020821,2]
[321932896,1712641845095,-500.0,0.00020821,2]
[321932897,1712641845105,-500.0,0.00020821,2]
[321932898,1712641845115,-619.36,0.00020821,2]
[321932899,1712641845124,-1512.84,0.00020821,2]
[321932900,1712641845134,-546.43,0.00020821,2]
[321932901,1712641845144,-584.32,0.00020821,2]
[321932902,1712641845153,-2600.24,0.00020821,2]
[321932903,1712641845163,-500.0,0.00020821,2]
[321932904,1712641845173,-593.08,0.00020821,2]
[321932905,1712641845183,-1849.29,0.00020821,2]
[321932906,1712641845193,-500.0,0.00020821,2]
[321932907,1712641845202,-500.0,0.00020821,2]
[321932908,1712641845212,-500.0,0.00020821,2]
[321932909,1712641845221,-500.0,0.00020821,2]
[321932910,1712641845231,-500.0,0.00020821,2]
[321932911,1712641845241,-1054.12,0.00020821,2]
[321932912,1712641845251,-1268.43,0.00020821,2]
[321932913,1712641845262,-500.0,0.00020821,2]
[321932914,1712641845271,-819.58,0.00020821,2]
[321932915,1712641845281,-1465.86,0.00020821,2]
[321932916,1712641845291,-500.0,0.00020821,2]
[321932917,1712641845301,-500.0,0.00020821,2]
[321932918,1712641845311,-2631.39,0.00020821,2]
[321932919,1712641845321,-2655.09,0.00020821,2]
[321932920,1712641845331,-500.0,0.00020821,2]
[321932921,1712641845341,-500.0,0.00020821,2]
[321932922,1712641845351,-500.0,0.00020821,2]
[321932923,1712641845361,-500.0,0.00020821,2]
[321932924,1712641845370,-1092.0,0.00020821,2]
[321932925,1712641845379,-729.14,0.00020821,2]
[321932926,1712641845390,-610.33,0.00020821,2]
[321932927,1712641845399,-500.0,0.00020821,2]
[321932928,1712641845409,-500.0,0.00020821,2]
[321932929,1712641845419,-2916.94,0.00020821,2]
[321932930,1712641845429,-500.0,0.00020821,2]
[321932931,1712641845439,-1777.54,0.00020821,2]
[321932932,1712641845448,-500.0,0.00020821,2]
[321932933,1712641845459,-500.0,0.00020821,2]
[321932934,1712641845470,-1292.64,0.00020821,2]
[321932935,1712641845481,-500.0,0.00020821,2]
[321932936,1712641845494,-1239.45,0.00020821,2]
[321932938,1712641845503,-500.0,0.00020821,2]
[321932940,1712641845513,-507.60337668,0.00020821,2]
[321932942,1712641845523,-505.03048117,0.00020821,2]
[321932944,1712641845533,-4888.65,0.00020821,2]
[321932946,1712641845543,-500.0,0.00020821,2]
[321932948,1712641845553,-500.0,0.00020821,2]
[321932951,1712641845564,-500.0,0.00020821,2]
[321932953,1712641845573,-504.47188906,0.00020821,2]
[321932955,1712641845582,-555.03,0.00020821,2]
[321932957,1712641845591,-879.49,0.00020821,2]
[321932959,1712641845601,-6563.12,0.00020821,2]
[321932961,1712641845609,-500.0,0.00020821,2]
[321932963,1712641845618,-500.0,0.00020821,2]
[321932964,1712641845627,-500.0,0.00020821,2]
[321932965,1712641845637,-500.0,0.00020821,2]
[321932966,1712641845646,-500.0,0.00020821,2]
[321932967,1712641845655,-500.0,0.00020821,2]
[321932968,1712641845664,-500.0,0.00020821,2]
[321932969,1712641845674,-500.0,0.00020821,2]
[321932970,1712641845683,-500.0,0.00020821,2]
[321932971,1712641845693,-898.87,0.00020821,2]
[321932972,1712641845702,-2258.85,0.00020821,2]
[321932973,1712641845712,-975.73,0.00020821,2]
[321932974,1712641845722,-1487.18,0.00020821,2]
[321932975,1712641845732,-13083.07,0.00020821,2]
[321932976,1712641845742,-500.0,0.00020821,2]
[321932977,1712641845751,-1583.63,0.00020821,2]
[321932978,1712641845761,-500.0,0.00020821,2]
[321932979,1712641845771,-1520.69,0.00020821,2]
[321932980,1712641845780,-5583.09,0.00020821,2]
[321932981,1712641845789,-770.58,0.00020821,2]
[321932982,1712641845799,-530.34358591,0.00020821,2]
[321932983,1712641845809,-1061.89,0.00020821,2]
[321932984,1712641845818,-500.0,0.00020821,2]
[321932985,1712641845828,-500.0,0.00020821,2]
[321932986,1712641845838,-2035.91,0.00020821,2]
[321932987,1712641845848,-505.15518025,0.00020821,2]
[321932988,1712641845857,-7853.61,0.00020821,2]
[321932989,1712641845867,-500.0,0.00020821,2]
[321932990,1712641845876,-500.0,0.00020821,2]
[321932991,1712641845885,-826.42,0.00020821,2]
[321932992,1712641845897,-205.23285819,0.00020821,2]
[321932993,1712641845908,-2187.99,0.00020821,2]
[321932994,1712641845917,-992.27,0.00020821,2]
[321932995,1712641845926,-1495.51,0.00020821,2]
[321932996,1712641845936,-500.0,0.00020821,2]
[321932997,1712641845946,-500.0,0.00020821,2]
[321932998,1712641845955,-500.0,0.00020821,2]
[321932999,1712641845965,-500.0,0.00020821,2]
[321933000,1712641845974,-500.0,0.00020821,2]
[321933001,1712641845984,-500.0,0.00020821,2]
[321933002,1712641845994,-500.0,0.00020821,2]
[321933003,1712641846003,-2628.86,0.00020821,2]
[321933004,1712641846013,-500.0,0.00020821,2]
[321933005,1712641846023,-500.0,0.00020821,2]
[321933006,1712641846033,-11147.56,0.00020821,2]
[321933007,1712641846043,-1514.63,0.00020821,2]
[321933008,1712641846053,-5010.58,0.00020821,2]
[321933009,1712641846062,-548.56680995,0.00020821,2]
[321933010,1712641846071,-500.0,0.00020821,2]
[321933011,1712641846081,-500.0,0.00020821,2]
[321933012,1712641846090,-2300.96,0.00020821,2]
[321933013,1712641846101,-3648.88,0.00020821,2]
[321933014,1712641846111,-527.85054017,0.00020821,2]
[321933015,1712641846121,-500.0,0.00020821,2]
[321933017,1712641846130,-1207.55,0.00020821,2]
[321933019,1712641846140,-500.0,0.00020821,2]
[321933021,1712641846149,-500.0,0.00020821,2]
[321933023,1712641846159,-500.0,0.00020821,2]
[321933025,1712641846169,-570.04,0.00020821,2]
[321933027,1712641846179,-500.0,0.00020821,2]
[321933029,1712641846188,-1079.74,0.00020821,2]
[321933031,1712641846198,-2003.05908814,0.00020821,2]
[321933033,1712641846207,-1347.52,0.00020821,2]
[321933035,1712641846217,-500.0,0.00020821,2]
[321933037,1712641846229,-1391.88,0.00020821,2]
[321933039,1712641846238,-3144.78,0.00020821,2]
[321933042,1712641846248,-522.23555095,0.00020821,2]
[321933044,1712641846258,-1487.44,0.00020821,2]
[321933046,1712641846267,-11353.4,0.00020821,2]
[321933048,1712641846277,-4992.16,0.00020821,2]
[321933049,1712641846288,-500.0,0.00020821,2]
[321933051,1712641846297,-500.0,0.00020821,2]
[321933054,1712641846307,-771.66,0.00020821,2]
[321933056,1712641846316,-500.0,0.00020821,2]
[321933057,1712641846326,-500.0,0.00020821,2]
[321933060,1712641846335,-905.39,0.00020821,2]
[321933061,1712641846345,-3975.77,0.00020821,2]
[321933063,1712641846354,-500.0,0.00020821,2]
[321933066,1712641846363,-500.0,0.00020821,2]
[321933068,1712641846373,-904.74,0.00020821,2]
[321933070,1712641846383,-2787.57,0.00020821,2]
[321933071,1712641846393,-505.43401499,0.00020821,2]
[321933074,1712641846403,-500.0,0.00020821,2]
[321933076,1712641846413,-2666.76,0.00020821,2]
[321933077,1712641846423,-3478.21,0.00020821,2]
[321933079,1712641846434,-60002.59,0.00020821,2]
[321933081,1712641846445,-500.0,0.00020821,2]
[321933082,1712641846455,-1687.31,0.00020821,2]
[321933083,1712641846465,-909.82,0.00020821,2]
[321933084,1712641846479,-7989.19,0.00020821,2]
[321933085,1712641846489,-2117.11,0.00020821,2]
[321933086,1712641846498,-500.0,0.00020821,2]
[321933087,1712641846508,-506.03176628,0.00020821,2]
[321933088,1712641846518,-510.91990082,0.00020821,2]
[321933089,1712641846529,-500.0,0.00020821,2]
[321933090,1712641846540,-518.96,0.00020821,2]
[321933091,1712641846550,-500.0,0.00020821,2]
[321933092,1712641846562,-500.0,0.00020821,2]
[321933093,1712641846571,-500.0,0.00020821,2]
[321933094,1712641846581,-3273.14,0.00020821,2]
[321933095,1712641846591,-602.86,0.00020821,2]
[321933096,1712641846603,-4837.96,0.00020821,2]
[321933097,1712641846613,-500.0,0.00020821,2]
[321933098,1712641846622,-500.0,0.00020821,2]
[321933099,1712641846632,-500.0,0.00020821,2]
[321933100,1712641846642,-500.0,0.00020821,2]
[321933101,1712641846651,-500.0,0.00020821,2]
[321933102,1712641846660,-500.0,0.00020821,2]
[321933103,1712641846670,-3346.67,0.00020821,2]
[321933104,1712641846680,-24923.02,0.00020821,2]
[321933105,1712641846689,-1679.17,0.00020821,2]
[321933106,1712641846789,-500.0,0.00020821,2]
[321933107,1712641846799,-500.0,0.00020821,2]
[321933108,1712641846809,-2453.53,0.00020821,2]
[321933109,1712641846819,-3588.24,0.00020821,2]
[321933110,1712641846828,-697.71,0.00020821,2]
[321933111,1712641846838,-500.0,0.00020821,2]
[321933112,1712641846848,-18656.35,0.00020821,2]
[321933113,1712641846858,-2164.26,0.00020821,2]
[321933114,1712641846867,-7252.64,0.00020821,2]
[321933115,1712641846877,-1128.36,0.00020821,2]
[321933116,1712641846886,-516.83039828,0.00020821,2]
[321933117,1712641846896,-504.09437094,0.00020821,2]
[321933118,1712641846905,-500.0,0.00020821,2]
[321933119,1712641846914,-500.0,0.00020821,2]
[321933120,1712641846923,-500.0,0.00020821,2]
[321933121,1712641846932,-500.0,0.00020821,2]
[321933122,1712641846942,-3822.52,0.00020821,2]
[321933123,1712641846952,-500.0,0.00020821,2]
[321933124,1712641846960,-500.0,0.00020821,2]
[321933125,1712641846969,-500.0,0.00020821,2]
[321933126,1712641846978,-543.97,0.00020821,2]
[321933127,1712641846988,-2333.91,0.00020821,2]
[321933128,1712641846997,-2859.35,0.00020821,2]
[321933129,1712641847006,-500.0,0.00020821,2]
[321933130,1712641847015,-3768.53,0.00020821,2]
[321933131,1712641847025,-537.51,0.00020821,2]
[321933132,1712641847034,-5896.27,0.00020821,2]
[321933133,1712641847043,-500.0,0.00020821,2]
[321933134,1712641847052,-500.0,0.00020821,2]
[321933135,1712641847061,-1390.81,0.00020821,2]
[321933136,1712641847070,-500.0,0.00020821,2]
[321933137,1712641847079,-3380.67,0.00020821,2]
[321933138,1712641847088,-500.0,0.00020821,2]
[321933139,1712641847098,-500.0,0.00020821,2]
[321933140,1712641847108,-500.0,0.00020821,2]
[321933141,1712641847117,-2593.21,0.00020821,2]
[321933142,1712641847126,-7124.69,0.00020821,2]
[321933143,1712641847135,-872.96,0.00020821,2]
[321933144,1712641847144,-3810.5,0.00020821,2]
[321933145,1712641847153,-500.0,0.00020821,2]
[321933146,1712641847163,-500.0,0.00020821,2]
[321933147,1712641847172,-2381.0,0.00020821,2]
[321933148,1712641847181,-2256.61,0.00020821,2]
[321933149,1712641847190,-500.0,0.00020821,2]
[321933150,1712641847200,-500.0,0.00020821,2]
[321933151,1712641847209,-500.0,0.00020821,2]
[321933152,1712641847218,-500.0,0.00020821,2]
[321933153,1712641847228,-500.0,0.00020821,2]
[321933154,1712641847237,-3240.74,0.00020821,2]
[321933155,1712641847246,-500.0,0.00020821,2]
[321933156,1712641847255,-556.74377467,0.00020821,2]
[321933157,1712641847265,-500.0,0.00020821,2]
[321933158,1712641847274,-7053.52,0.00020821,2]
[321933159,1712641847283,-500.0,0.00020821,2]
[321933160,1712641847292,-1568.86,0.00020821,2]
[321933161,1712641847301,-500.0,0.00020821,2]
[321933162,1712641847310,-3410.59,0.00020821,2]
[321933163,1712641847319,-531.59876044,0.00020821,2]
[321933164,1712641847328,-500.0,0.00020821,2]
[321933165,1712641847337,-3807.91,0.00020821,2]
[321933166,1712641847347,-4630.79,0.00020821,2]
[321933167,1712641847356,-500.0,0.00020821,2]
[321933168,1712641847365,-566.58,0.00020821,2]
[321933169,1712641847374,-1526.53,0.00020821,2]
[321933170,1712641847383,-500.0,0.00020821,2]
[321933171,1712641847392,-500.0,0.00020821,2]
[321933172,1712641847401,-500.0,0.00020821,2]
[321933173,1712641847410,-516.21799279,0.00020821,2]
[321933174,1712641847419,-1606.58,0.00020821,2]
[321933175,1712641847428,-500.0,0.00020821,2]
[321933176,1712641847437,-538.29609663,0.00020821,2]
[321933177,1712641847446,-1998.25,0.00020821,2]
[321933178,1712641847455,-1252.45,0.00020821,2]
[321933179,1712641847465,-500.0,0.00020821,2]
[321933180,1712641847476,-4518.74,0.00020821,2]
[321933181,1712641847488,-500.0,0.00020821,2]
[321933182,1712641847497,-500.0,0.00020821,2]
[321933183,1712641847507,-500.0,0.00020821,2]
[321933184,1712641847517,-4300.45,0.00020821,2]
[321933185,1712641847527,-564.73,0.00020821,2]
[321933186,1712641847536,-13463.68,0.00020821,2]
[321933187,1712641847546,-594.86,0.00020821,2]
[321933188,1712641847555,-764.1,0.00020821,2]
[321933189,1712641847566,-803.13,0.00020821,2]
[321933190,1712641847577,-1582.85,0.00020821,2]
[321933191,1712641847587,-500.0,0.00020821,2]
[321933192,1712641847596,-963.02,0.00020821,2]
[321933193,1712641847605,-500.0,0.00020821,2]
[321933194,1712641847614,-500.0,0.00020821,2]
[321933195,1712641847624,-1913.65,0.00020821,2]
[321933196,1712641847634,-783.52,0.00020821,2]
[321933197,1712641847644,-24173.12,0.00020821,2]
[321933198,1712641847653,-1515.61,0.00020821,2]
[321933199,1712641847663,-1323.85,0.00020821,2]
[321933200,1712641847674,-4146.04,0.00020821,2]
[321933201,1712641847684,-6436.98,0.00020821,2]
[321933202,1712641847694,-528.88180895,0.00020821,2]
[321933203,1712641847704,-500.0,0.00020821,2]
[321933204,1712641847713,-595.82,0.00020821,2]
[321933205,1712641847723,-500.0,0.00020821,2]
[321933206,1712641847732,-3072.57,0.00020821,2]
[321933207,1712641847742,-3801.38,0.00020821,2]
[321933208,1712641847751,-836.86,0.00020821,2]
[321933209,1712641847760,-500.0,0.00020821,2]
[321933210,1712641847770,-510.82558716,0.00020821,2]
[321933211,1712641847778,-500.0,0.00020821,2]
[321933212,1712641847788,-500.0,0.00020821,2]
[321933213,1712641847798,-500.0,0.00020821,2]
[321933214,1712641847808,-500.0,0.00020821,2]
[321933215,1712641847818,-500.0,0.00020821,2]
[321933216,1712641847828,-794.25,0.00020821,2]
[321933217,1712641847837,-500.0,0.00020821,2]
[321933218,1712641847847,-1449.69,0.00020821,2]
[321933219,1712641847858,-1547.47,0.00020821,2]
[321933220,1712641847868,-522.02889052,0.00020821,2]
[321933221,1712641847879,-10431.85,0.00020821,2]
[321933222,1712641847889,-5832.05,0.00020821,2]
[321933223,1712641847898,-4454.56,0.00020821,2]
[321933224,1712641847908,-2731.89,0.00020821,2]
[321933225,1712641847917,-500.0,0.00020821,2]
[321933226,1712641847926,-963.1,0.00020821,2]
[321933227,1712641847935,-500.0,0.00020821,2]
[321933228,1712641847944,-963.1,0.00020821,2]
[321933229,1712641847952,-500.0,0.00020821,2]
[321933230,1712641847961,-500.0,0.00020821,2]
[321933231,1712641847971,-963.1,0.00020821,2]
[321933232,1712641847980,-500.0,0.00020821,2]
[321933233,1712641847989,-963.1,0.00020821,2]
[321933234,1712641847998,-520.11,0.00020821,2]
[321933235,1712641848007,-963.1,0.00020821,2]
[321933236,1712641848016,-1390.35,0.00020821,2]
[321933237,1712641848026,-963.1,0.00020821,2]
[321933238,1712641848036,-963.1,0.00020821,2]
[321933239,1712641848045,-500.0,0.00020821,2]
[321933240,1712641848055,-500.0,0.00020821,2]
[321933241,1712641848065,-516.47,0.00020821,2]
[321933242,1712641848075,-911.78,0.00020821,2]
[321933243,1712641848084,-627.13,0.00020821,2]
[321933244,1712641848094,-4519.11,0.00020821,2]
[321933245,1712641848104,-576.5,0.00020821,2]
[321933246,1712641848114,-23810.58,0.00020821,2]
[321933247,1712641848124,-4866.14,0.00020821,2]
[321933248,1712641848133,-3413.24,0.00020821,2]
[321933249,1712641848142,-500.0,0.00020821,2]
[321933250,1712641848152,-11197.1,0.00020821,2]
[321933251,1712641848162,-500.0,0.00020821,2]
[321933252,1712641848173,-50708.25,0.00020821,2]
[321933253,1712641848182,-1548.35,0.00020821,2]
[321933254,1712641848191,-500.0,0.00020821,2]
[321933255,1712641848200,-500.0,0.00020821,2]
[321933256,1712641848210,-500.0,0.00020821,2]
[321933257,1712641848220,-746.71,0.00020821,2]
[321933258,1712641848230,-3243.77,0.00020821,2]
[321933259,1712641848249,-2425.03,0.00020821,2]
[321933260,1712641848258,-500.0,0.00020821,2]
[321933261,1712641848267,-500.0,0.00020821,2]
[321933262,1712641848277,-500.0,0.00020821,2]
[321933263,1712641848287,-8333.08,0.00020821,2]
[321933264,1712641848296,-500.0,0.00020821,2]
[321933265,1712641848305,-500.0,0.00020821,2]
[321933266,1712641848314,-1035.54,0.00020821,2]
[321933267,1712641848325,-500.0,0.00020821,2]
[321933268,1712641848334,-500.0,0.00020821,2]
[321933269,1712641848343,-500.0,0.00020821,2]
[321933270,1712641848353,-6766.08,0.00020821,2]
[321933271,1712641848362,-500.0,0.00020821,2]
[321933272,1712641848370,-500.0,0.00020821,2]
[321933273,1712641848379,-500.0,0.00020821,2]
[321933274,1712641848388,-500.0,0.00020821,2]
[321933275,1712641848397,-663.87,0.00020821,2]
[321933276,1712641848407,-500.0,0.00020821,2]
[321933277,1712641848415,-878.71,0.00020821,2]
[321933278,1712641848424,-500.0,0.00020821,2]
[321933279,1712641848433,-846.68,0.00020821,2]
[321933280,1712641848442,-500.0,0.00020821,2]
[321933281,1712641848451,-1017.65,0.00020821,2]
[321933282,1712641848460,-1807.05,0.00020821,2]
[321933283,1712641848470,-10890.91,0.00020821,2]
[321933284,1712641848479,-500.0,0.00020821,2]
[321933285,1712641848491,-8457.8,0.00020821,2]
[321933286,1712641848500,-20921.56,0.00020821,2]
[321933287,1712641848509,-5376.41,0.00020821,2]
[321933288,1712641848518,-500.0,0.00020821,2]
[321933289,1712641848527,-500.0,0.00020821,2]
[321933290,1712641848536,-787.57,0.00020821,2]
[321933291,1712641848545,-1996.28,0.00020821,2]
[321933292,1712641848554,-500.0,0.00020821,2]
[321933293,1712641848563,-662.71,0.00020821,2]
[321933294,1712641848573,-12618.18,0.00020821,2]
[321933295,1712641848582,-3713.69,0.00020821,2]
[321933296,1712641848591,-503.12937236,0.00020821,2]
[321933297,1712641848601,-500.0,0.00020821,2]
[321933298,1712641848610,-1739.64,0.00020821,2]
[321933299,1712641848619,-300.0,0.00020821,2]
[321933300,1712641848628,-46257.48268696,0.00020821,2]
[321933301,1712641849248,-19143.75731304,0.00020821,2]
[321933302,1712641849258,-500.0,0.00020821,2]
[321933303,1712641849267,-5019.21,0.00020821,2]
[321933304,1712641849277,-11702.66,0.00020821,2]
[321933305,1712641849286,-500.0,0.00020821,2]
[321933306,1712641849295,-500.0,0.00020821,2]